{"text_format":"3","workbook":"xlsx","n_sheets":4,"sheets":["Rekapitulacija","I MESEČNE AKTIVNOSTI ","II LETNE AKTIVNOSTI","III DODATNA ČIŠČENJA"],"not_rendered":{"images":1,"defined_names":1},"read":"whole","date_system":"1900"}

{"sheet":"Rekapitulacija","index":0,"n_rows":14,"n_cols":4,"rows_kept":14,"merged":[[3,1,3,2],[5,1,5,2]]}
[]
[]
[null,"RAZPISNA DOKUMENTACIJA ZA JAVNO NAROČILO"]
[null,"»ČIŠČENJE PROSTOROV«"]
[]
[null,"REKAPITULACIJA"]
[{"$nulls":3},"SKUPAJ"]
[null,"I","MESEČNE AKTIVNOSTI",{"$f":"'I MESEČNE AKTIVNOSTI '!F146","v":{"v":0,"d":"0.00 €"}}]
[null,"II","LETNE AKTIVNOSTI",{"$f":"'II LETNE AKTIVNOSTI'!F41","v":{"v":0,"d":"0.00 €"}}]
[null,"III","DODATNA ČIŠČENJA PO NAROČILU in INTERVENCIJSKO ČIŠČENJE ",{"$f":"'III DODATNA ČIŠČENJA'!F8","v":{"v":0,"d":"0.00 €"}}]
[null,"I +II + III ","SKUPAJ brez DDV",{"$f":"D8+D9+D10","v":{"v":0,"d":"0.00 €"}}]
[]
[null,null,"DDV 22%",{"$f":"D11*0.22","v":{"v":0,"d":"0.00 €"}}]
[null,"I+II+III","SKUPAJ z DDV",{"$f":"D13+D11","v":{"v":0,"d":"0.00 €"}}]

{"sheet":"I MESEČNE AKTIVNOSTI ","index":1,"n_rows":146,"n_cols":6,"rows_kept":146,"merged":[[26,1,26,2],[64,0,65,0],[64,2,65,2],[64,3,65,3],[64,4,65,4],[64,5,65,5],[85,0,86,0],[85,2,86,2],[85,3,86,3],[85,4,86,4],[85,5,86,5],[125,0,126,0],[125,2,126,2],[125,3,126,3],[125,4,126,4],[125,5,126,5],[131,1,131,3],[135,1,135,2]]}
["I.","MESEČNE AKTIVNOSTI","Merska enota","Količina","Cena/enoto brez DDV","Cena brez DDV za 4 leta "]
["A","SANITARNI PROSTORI IN ČAJNE KUHINJE - 792,4 m2"]
[null,"Redne dnevne, tedenske, mesečne ter pol-letne aktivnosti"]
[]
[null,"Obvezne dnevne aktivnosti:"]
[null,"·       suho in vlažno čiščenje talnih površin"]
[null,"·       čiščenje sanitarne opreme"]
[null,"·       vstavljanje potrošnih materialov v sanitarnih prostorih (toaletnega papirja in papirnatih brisač, mila, dezinfekcijskih sredstev za roke, tablet za pisoarje, vrečk in oblog za wc deske….)"]
[null,"·       praznjenje in čiščenje košev za smeti ter zbiralnikov za ločeno zbiranje odpadkov – strogo ločevanje odpadkov in odnašanje smeti v kontejner oz. zbiralnike"]
[null,"·       nalivanje tekočega mila in vstavljanje brisač v čajnih kuhinjah (za čistočo kuhinje in posodo skrbijo zaposleni)"]
[null,"·       čiščenje vidnih madežev z vrat in ostalih stenskih površin do 2m,"]
[]
[null,"Obvezne tedenske aktivnosti:"]
[null,"·         dezinficiranje sanitarij in odišavljanje sanitarij,"]
[null,"·         suho in vlažno brisanje steklenih sten"]
[]
[null,"Obvezne mesečne aktivnosti: "]
[null,"·         čiščenje stikal in kljuk "]
[null,"·         ometanje pajčevin"]
[]
[null,"Obvezne pol-letne aktivnosti"]
[null,".         suho in vlažno brisanje okvirjev slik"]
[null,"·         čiščenje zidnih oblog, omar, notranjih okenskih polic, vrat in nadsvetlob nad vrati "]
[]
[null,"SKUPAJ A","mesec",48,0,{"$f":"D25*E25","v":0}]
[]
["B","SKUPNI PROSTORI (hodniki, dvigala, stopnišča, balkoni, terase, avla,..) -5.641,7m2"]
[null,"Redne dnevne, tedenske, mesečne ter pol-letne aktivnosti"]
[]
[null,"Obvezne dnevne aktivnosti:"]
[]
[null,"·       praznjenje in čiščenje košev za smeti ter zbiralnikov za ločeno zbiranje odpadkov – strogo ločevanje odpadkov in odnašanje smeti v kontejner oz. zbiralnike"]
[null,"·       čiščenje vidnih madežev z vrat in ostalih stenskih površin do 2m."]
[]
[null,"Obvezne tedenske aktivnosti:"]
[]
[null,"·        sesanje, suho in vlažno čiščenje talnih površin"]
[null,"·         suho in vlažno brisanje steklenih sten"]
[null,"·         čiščenje vhodov v objekt- predpražnikov, suho in vlažno brisanje vhodov in pripadajočih površin"]
[null,"·         stepanje tekstilnih predpražnikov,"]
[null,"·         čiščenje ogledal "]
[]
[null,"Obvezne mesečne aktivnosti: "]
[null,"·         čiščenje stikal in kljuk "]
[null,"·         ometanje pajčevin"]
[null,"·     čiščenje ograj stopnišč"]
[]
[null,"Obvezne pol-letne aktivnosti:"]
[null,"·         suho in vlažno brisanje okvirjev slik"]
[null,"·         čiščenje zidnih oblog, omar, notranjih okenskih polic, vrat in nadsvetlob nad vrati, "]
[null,"SKUPAJ B","mesec",48,0,{"$f":"D51*E51","v":0}]
[]
["C","ČIŠČENJE PREDAVALNIC, SEJNIH SOB, KNJIŽNICE -1.975,3 m2"]
[null,"Redne dnevne, tedenske, mesečne ter pol-letne aktivnosti"]
[null,"Obvezne dnevne aktivnosti:"]
[null,"·       praznjenje in čiščenje košev za smeti ter zbiralnikov za ločeno zbiranje odpadkov – strogo ločevanje odpadkov in odnašanje smeti v kontejner oz. zbiralnike"]
[null,"·       čiščenje vidnih madežev z vrat in ostalih stenskih površin do 2m."]
[]
[null,"Obvezne tedenske aktivnosti:"]
[null,"·       odstranjevanje madežev, prstnih odtisov in prahu s prostih  delovnih površin, pohištva"]
[null,"·       sesanje, suho in vlažno čiščenje talnih površin,"]
[null,"·       čiščenje umivalnikov in ogledal v poslovnih prostorih"]
[]
[null,"Obvezne mesečne aktivnosti: "]
[null,"·         čiščenje stikal in kljuk "]
[null,".       suho in vlažno brisanje steklenih sten"]
[null,"·         ometanje pajčevin"]
[]
[null,"Obvezne pol-letne aktivnosti:"]
[null,"·         suho in vlažno brisanje okvirjev slik"]
[null,"·         brisanje in sesanje oblazinjenih stolov"]
[null,"·         čiščenje zidnih oblog, omar, notranjih okenskih polic, vrat in nadsvetlob nad vrati, "]
[]
[null,"SKUPAJ C","mesec",48,0,{"$f":"D74*E74","v":0}]
[]
["Č","ČIŠČENJE PISARN, LABORATORIJEV, DELAVNIC, GARAŽE - 18.442 m2"]
[null,"Redne tedenske, mesečne ter pol-letne aktivnosti"]
[null,"Obvezne tedenske aktivnosti:"]
[null,"·       odstranjevanje madežev, prstnih odtisov in prahu s prostih  delovnih površin, pohištva"]
[null,"·       praznjenje in čiščenje košev za smeti ter zbiralnikov za ločeno zbiranje odpadkov – strogo ločevanje odpadkov in odnašanje smeti v kontejner oz. zbiralnike "]
[null,"·       sesanje, suho in vlažno čiščenje talnih površin,"]
[null,"·       čiščenje vidnih madežev z vrat in ostalih stenskih površin do 2m"]
[null,"·       čiščenje umivalnikov in ogledal v poslovnih prostorih,"]
[]
[null,"Obvezne mesečne aktivnosti:"]
[null,"·         temeljito (globinsko) sesanje vseh tekstilnih oblog,"]
[null,".       suho in vlažno brisanje steklenih sten"]
[null,"·        čiščenje stikal in kljuk, "]
[null,"·         ometanje pajčevin,"]
[]
[null,"Obvezne pol-letne aktivnosti:"]
[null,"·         suho in vlažno brisanje okvirjev slik"]
[null,"·         brisanje in sesanje oblazinjenih stolov"]
[null,"·         čiščenje zidnih oblog, omar, notranjih okenskih polic, vrat in nadsvetlob nad vrati, "]
[]
[null,"SKUPAJ Č","mesec",48,0,{"$f":"D96*E96","v":0}]
[]
["D","ČIŠČENJE ARHIVA in OSTALIH PROSTOROV-632,1 m2"]
[null,"Redne mesečne ter pol-letne aktivnosti"]
[]
[null,"Obvezne mesečne aktivnosti:"]
[null,"·       praznjenje in čiščenje košev za smeti ter zbiralnikov za ločeno zbiranje odpadkov – strogo ločevanje odpadkov in odnašanje smeti v kontejner oz. zbiralnike "]
[null,"·       sesanje, suho in vlažno čiščenje talnih površin,"]
[null,"·       čiščenje vidnih madežev z vrat in ostalih stenskih površin do 2m"]
[null,"·       čiščenje umivalnikov in ogledal v poslovnih prostorih,"]
[null,"·         temeljito (globinsko) sesanje vseh tekstilnih oblog,"]
[null,"·         suho in vlažno brisanje steklenih sten"]
[null,"·        čiščenje stikal in kljuk, "]
[null,"·         ometanje pajčevin,"]
[]
[null,"Obvezne pol-letne aktivnosti:"]
[null,"·         suho in vlažno brisanje okvirjev slik"]
[null,"·         brisanje in sesanje oblazinjenih stolov"]
[null,"·         čiščenje zidnih oblog, omar, notranjih okenskih polic, vrat in nadsvetlob nad vrati, "]
[]
[null,"SKUPAJ D","mesec",48,0,{"$f":"D116*E116","v":0}]
[]
["E","ČIŠČENJE STANOVANJ (1.071,8 m2)"]
[null,"Upošteva se 2 čistilca za čiščenje službenih stanovanj, ki sta prisotna vsak po 3 ure dnevno na naročnikovih objektih "]
[null,"Ob menjavi gosta je potrebno naslednje:"]
[null,"·         čiščenje talnih površin in po potrebi izvedba premazov (vsaj 1x letno izvedba premazov), "]
[null,"·       globinsko čiščenje preprog in oblazinjenega pohištva"]
[null,"·         čiščenje sanitarij, vstavljanje toaletnega papirja in tekočega mila"]
[null,"·         čiščenje prahu s pohištva in ostalih površin (znotraj in zunaj), okvirjev vrat"]
[null,"·         čiščenje oken, pranje zaves oz. senčil"]
[null,"·         pomivanje kuhinjskih elementov, bele tehnike, posode, vstavitev nove gobice za"]
[null," pomivanje in detergenta za pomivanje posode"]
[null,"·         praznjenje košev za smeti"]
[null,"·         priprava ležišč (postiljanje) in priprava brisač v skladu s številom gostov"]
[null,"·         druga dela v skladu z navodili naročnika."]
[]
[null,"V službenih stanovanjih, kjer so gostje nastanjeni daljše časovno obdobje, je tedensko potrebno:"]
[null,"·         čiščenje talnih površin in po potrebi izvedba premazov"]
[null,"·         čiščenje sanitarij, vstavljanje toaletnega papirja in tekočega mila"]
[null,"·         čiščenje prahu s pohištva in ostalih površin"]
[null,"·         2x letno čiščenje oken, žaluzij oz. senčil in  čiščenje stropnih svetilk"]
[null,"·         pomivanje kuhinjskih elementov, bele tehnike, vstavitev nove gobice za pomivanje in detergenta za pomivanje posode"]
[null,"·         praznjenje košev za smeti"]
[null,"·         priprava ležišč (postiljanje) in priprava brisač v skladu s številom gostov"]
[null,"Ostale aktivnosti:"]
[null,"·         skrbi za oddajo in prevzem perila v pralnico (popis perila)"]
[null,"·         druga dela v skladu z navodili naročnika."]
[]
[null,"SKUPAJ E","mesec",48,0,{"$f":"D144*E144","v":0}]
[]
[null,"SKUPAJ I. (A+B+C+Č+D+E) ",{"$nulls":3},{"$f":"F25+F51+F74+F96+F116+F144","v":0}]

{"sheet":"II LETNE AKTIVNOSTI","index":2,"n_rows":41,"n_cols":6,"rows_kept":41,"merged":[[10,1,10,4],[38,0,39,0],[38,1,39,1],[38,2,39,2],[38,3,39,3],[38,4,39,4],[38,5,39,5]]}
["II.","LETNE AKTIVNOSTI","Merska enota","Količina","Cena/enoto brez DDV","Cena brez DDV za 4 leta "]
[null,"Obvezne letne aktivnosti "]
[null,"·       čiščenje okenskih stekel in okenskih okvirjev "]
[null,"·       odstranjevanje dotrajanih in nanašanje novih talnih premazov na gladkih PVC talnih oblogah, kamnu, "]
[null,"·       globinsko in površinsko pranje sintetičnih talnih oblog "]
[null,"·       strojno čiščenje parketa z emulzijskim premazom "]
[null,"·       kristalizacija marmorja "]
[null,"·       čiščenje stropnih in stenskih svetil  "]
[null,"·       čiščenje vtičnic"]
[null,"·       čiščenje podnožij stolov in miz"]
[null,"*Opomba: merska enota kompl v nadaljevanju pomeni izvedba letnih aktivnosti za celoten objekt v enem letu "]
[null,"Jamova cesta 39 v Ljubljani"]
[null,"A - glavna stavba (4 etaže - 4.254,4  m2)","kompl",4,0,{"$f":"D13*E13","v":0}]
[null,"B - prizidek (5 etaž - 1.971,1 m2)","kompl",4,0,{"$f":"D14*E14","v":0}]
[null,"C (L)- objekt (5 etaž - 4.929,9 m2)","kompl",4,0,0]
[null,"D - delavniški kompleks (3 etaže -1.433,0 m2)","kompl",4,0,0]
[null,"E (K7) - objekt (3 etaže - 942,6 m2)","kompl",4,0,0]
[null,"JP -južni prizidek (5 etaž- 1.684,4 m2)","kompl",4,0,0]
[null,"K - objekt (4 etaže - 2.624,6 m2)","kompl",4,0,0]
[null,"M- menza (2 etaži - 297,2 m2)","kompl",4,0,0]
[null,"N - objekt (6 etaž - 1.372,4 m2)","kompl",4,0,0]
[null,"Hlevček (1 etaža - 53,7 m2)","kompl",4,0,0]
[null,"Pod Smreka  (1 etaža - 150,4 m2)","kompl",4,0,0]
[null,"Začasni objekt  (1 etaža - 118,7 m2)","kompl",4,0,0]
[null,"Vratarnica IJS (1 etaža - 21,4 m2)","kompl",4,0,0]
[]
[null,"Reaktorski center , Brinje 40, Dol pri Ljubljani"]
[null,"1 - Reaktor Fizika (2 etaži - 1.404,8 m2)","kompl",4,0,{"$f":"D28*E28","v":0}]
[null,"1 - Reaktor Prizidek (3 etaže - 1.072,2 m2)","kompl",4,0,{"$f":"D29*E29","v":0}]
[null,"1 - Reaktor-Pogon (3 etaže - 645,3 m2)","kompl",4,0,0]
[null,"2 - Objekt Vroče Celice (1 etaža - 282,3m2)","kompl",4,0,0]
[null,"3 - Okolje - Laboratorijski del (2 etaži - 801,8 m2)","kompl",4,0,0]
[null,"3 - Okolje - Pisarniški del (3 etaže - 800,8 m2)","kompl",4,0,0]
[null,"4 - Šolski center -ICJT (2 etaži- 1.735,5 m2)","kompl",4,0,0]
[null,"5 - Pospeševalnik (4 etaže - 486,6 m2)","kompl",4,0,0]
[null,"7 - Arhiv (2 etaži - 368,2 m2)","kompl",4,0,0]
[null,"8 - Tehnika-Baraka-kotlovnica (1 etaža - 7.7m2)","kompl",4,0,0]
[null,"0 - Vratarnica (1 etaža- 24,5m2)","kompl",4,0,0]
[]
[]
[null,"SKUPAJ II.  ",{"$nulls":3},{"$f":"SUM(F13+F14+F15+F16+F17+F18+F19+F20+F21+F22+F23+F24+F25+F28+F29+F30+F31+F32+F33+F34+F35+F36+F37+F38)","v":0}]

{"sheet":"III DODATNA ČIŠČENJA","index":3,"n_rows":8,"n_cols":6,"rows_kept":8}
["III.","DODATNA ČIŠČENJA PO NAROČILU (Po gradbenih delih, čiščenje paviljona,..) IN INTERVENCIJSKO ČIŠČENJE (odzivni čas 2 uri)","Merska enota","Količina","Cena/enoto brez DDV","Cena brez DDV "]
[]
[null,"1. Dodatna čiščenja po naročilu","h",480,0,{"$f":"D3*E3","v":0}]
[null,"2. Intervencijsko čiščenje","h",50,0,{"$f":"D4*E4","v":0}]
[]
[]
[]
[null,"SKUPAJ III",{"$nulls":3},{"$f":"F4+F3","v":0}]